fUSD/lending_fUSD_20240215
["ID","MTS","AMOUNT","RATE_DAILY","PERIOD"]
[314154764,1708027853095,-500.0,0.00038904,7]
[314154765,1708027853106,-500.0,0.00038904,7]
[314154766,1708027853118,-500.0,0.00038904,7]
[314154767,1708027853129,-500.0,0.00038904,7]
[314154768,1708027853140,-542.79,0.00038904,7]
[314154769,1708027853151,-815.53,0.00038904,7]
[314154770,1708027853164,-500.0,0.00038904,7]
[314154771,1708027853175,-500.0,0.00038904,7]
[314154772,1708027853188,-536.76,0.00038904,7]
[314154773,1708027853199,-500.0,0.00038904,7]
[314154774,1708027853211,-500.0,0.00038904,7]
[314154775,1708027853223,-587.38,0.00038904,7]
[314154776,1708027853235,-383.41453293,0.00038904,7]
[314154777,1708027853244,-500.0,0.00038904,7]
[314154778,1708027853254,-500.0,0.00038904,7]
[314154779,1708027853263,-500.0,0.00038904,7]
[314154780,1708027853273,-500.0,0.00038904,7]
[314154781,1708027853282,-549.25,0.00038904,7]
[314154782,1708027853292,-1534.25,0.00038904,7]
[314154783,1708027853301,-500.0,0.00038904,7]
[314154784,1708027853313,-500.0,0.00038904,7]
[314154785,1708027853328,-840.44,0.00038904,7]
[314154786,1708027853338,-500.0,0.00038904,7]
[314154787,1708027853347,-239.71010732,0.00038904,7]
[314154788,1708027853357,-500.0,0.00038904,7]
[314154789,1708027853366,-649.58,0.00038904,7]
[314154790,1708027853375,-500.0,0.00038904,7]
[314154791,1708027853384,-500.0,0.00038904,7]
[314154792,1708027853394,-553.41,0.00038904,7]
[314154793,1708027853404,-182.82828618,0.00038904,7]
[314154794,1708027853413,-500.0,0.00038904,7]
[314154795,1708027853423,-807.79,0.00038904,7]
[314154796,1708027853432,-500.0,0.00038904,7]
[314154797,1708027853441,-8765.41,0.00038904,7]
[314154798,1708027853450,-368.26042509,0.00038904,7]
[314154799,1708027853459,-500.0,0.00038904,7]
[314154800,1708027853468,-500.0,0.00038904,7]
[314154801,1708027853477,-500.0,0.00038904,7]
[314154802,1708027853487,-500.0,0.00038904,7]
[314154803,1708027853496,-500.0,0.00038904,7]
[314154804,1708027853506,-500.0,0.00038904,7]
[314154805,1708027853516,-657.23,0.00038904,7]
[314154806,1708027853525,-500.0,0.00038904,7]
[314154807,1708027853534,-1540.25,0.00038904,7]
[314154808,1708027853544,-500.0,0.00038904,7]
[314154809,1708027853552,-782.67,0.00038904,7]
[314154810,1708027853561,-500.0,0.00038904,7]
[314154811,1708027853571,-155.0,0.00038969,4]
[314154812,1708027853580,-3506.14244726,0.00038969,4]
[314154813,1708027853589,-155.0,0.00038969,4]
[314154814,1708027853599,-2465.75199081,0.00038969,5]
[314154815,1708027853609,-245.50112212,0.00038969,4]
[314154816,1708027853619,-155.0,0.00038969,4]
[314154817,1708027853630,-6556.82406911,0.00038969,4]
[314154818,1708027853642,-155.0,0.00038969,2]
[314154819,1708027853653,-2000.0,0.00038969,5]
[314154820,1708027853663,-221.60678602,0.00038969,30]
[314154821,1708027853899,-824.32888045,0.00038969,4]
[314154822,1708027853912,-5000.0,0.00038969,25]
[314154823,1708027853925,-300.0,0.00038989,2]
[314154824,1708027853936,-300.0,0.00038989,2]
[314154825,1708027853947,-300.0,0.00038989,2]
[314154826,1708027853957,-228.43342937,0.00038989,2]
[314154827,1708027853966,-200.0,0.0003899,7]
[314154828,1708027853976,-150.0,0.00038999,2]
[314154829,1708027853988,-150.0,0.00038999,2]
[314154830,1708027853997,-286541.04640425,0.00039,2]
[314154831,1708027854013,-23563.5352927,0.00039,2]
[314154840,1708029032111,-159.78578832,0.00024998,2]
[314154841,1708029032120,-170.23985487,0.00024999,2]
[314154842,1708029032130,-13.12435681,0.00025,3]
[314154843,1708029032167,-336.87564319,0.00025,3]
[314154844,1708029032176,-170.23985487,0.00025,2]
[314154845,1708029032186,-170.23985487,0.00025,2]
[314154846,1708029032196,-279.55252317,0.00027,3]
[314154847,1708029032210,-120.44747683,0.00027,3]
[314154848,1708029032219,-450.0,0.00029,3]
[314154849,1708029032229,-500.0,0.00031,3]
[314154850,1708029032239,-205.0,0.00032274,2]
[314154851,1708029032249,-488.66145515,0.000328,2]
[314154852,1708029032258,-150.0,0.00032899,3]
[314154853,1708029032268,-332.017282,0.000329,2]
[314154854,1708029032278,-7548.56146098,0.000329,2]
[314154855,1708029032299,-491.71853902,0.000329,2]
[314154856,1708029032309,-550.0,0.00033,3]
[314154857,1708029032318,-168.0,0.00033,2]
[314154858,1708029032328,-313.87,0.00033,2]
[314154859,1708029032337,-511.21,0.00033,2]
[314154860,1708029032346,-499.99,0.00033,2]
[314154861,1708029032356,-49.82750098,0.00033044,2]
[314154862,1708029032367,-438.83395407,0.00033044,2]
[314154863,1708029032378,-823.81,0.0003316,2]
[314154864,1708029032388,-150.99,0.00033274,2]
[314154865,1708029032397,-488.66145505,0.00033288,2]
[314154866,1708029032407,-488.66145505,0.00033532,2]
[314154867,1708029032417,-2271.0,0.000337,3]
[314154869,1708029032427,-17422.0,0.000337,3]
[314154871,1708029032436,-488.66145505,0.00033776,2]
[314154873,1708029032445,-150.0,0.00033958,2]
[314154875,1708029032455,-205.0,0.00034123,5]
[314154877,1708029032464,-150.0,0.00034506,2]
[314154879,1708029032474,-150.0,0.00034585,2]
[314154881,1708029032483,-7487.68486614,0.00034695,10]
[314154883,1708029032492,-1851.20218683,0.00034714,10]
[314154885,1708029032502,-1031.16,0.00034922,2]
[314154886,1708029032512,-23900.0,0.00034958,2]
[314154887,1708029032521,-600.0,0.00035,3]
[314154888,1708029032531,-2000.0,0.00035002,2]
[314154889,1708029032541,-506.14,0.00035014,2]
[314154890,1708029032550,-238.57,0.00035027,2]
[314154891,1708029032559,-465.18,0.0003504,2]
[314154892,1708029032568,-503.74,0.00035056,2]
[314154893,1708029032578,-1697.67245612,0.00035099,4]
[314154894,1708029032587,-166.35,0.00035265,2]
[314154895,1708029032597,-500.0,0.00035373,2]
[314154896,1708029032606,-250.0,0.00035373,2]
[314154897,1708029032615,-823.81,0.00035424,2]
[314154898,1708029032625,-182.37,0.00035434,2]
[314154899,1708029032634,-166.35,0.00035527,2]
[314154900,1708029032643,-250.0,0.00035557,111]
[314154901,1708029032652,-163.64,0.00035679,2]
[314154902,1708029032661,-513.04,0.00035727,2]
[314154903,1708029032671,-166.35,0.0003579,2]
[314154904,1708029032681,-205.0,0.00035971,9]
[314154905,1708029032691,-166.35,0.00036053,2]
[314154906,1708029032701,-210.0,0.00036189,3]
[314154907,1708029032712,-1000.0,0.00036216,2]
[314154908,1708029032721,-290.0,0.0003623,2]
[314154909,1708029032731,-166.35,0.00036315,2]
[314154910,1708029032740,-465.18,0.00036337,2]
[314154911,1708029032750,-182.37,0.00036355,2]
[314154912,1708029032760,-177.34,0.00036534,2]
[314154913,1708029032769,-500.0,0.00036534,2]
[314154914,1708029032778,-166.35,0.00036578,2]
[314154915,1708029032788,-3912.18554123,0.00036585,2]
[314154916,1708029032797,-1261.17,0.00036595,2]
[314154917,1708029032806,-166.82,0.00036595,2]
[314154918,1708029032815,-506.14,0.00036658,2]
[314154919,1708029032825,-1261.17,0.00036788,2]
[314154920,1708029032834,-162.0,0.00036813,2]
[314154921,1708029032843,-166.35,0.0003684,2]
[314154922,1708029032852,-22865.38575657,0.000369,2]
[314154923,1708029032861,-1261.17,0.0003698,2]
[314154924,1708029032870,-155.0,0.00036999,4]
[314154925,1708029032878,-15984.42435397,0.00037,17]
[314154926,1708029032891,-21667.23567262,0.00037,17]
[314154927,1708029032903,-5164.128,0.00037,17]
[314154928,1708029032920,-57184.21197341,0.00037,17]
[314154929,1708029032929,-1000.0,0.00037,2]
[314154930,1708029032940,-650.0,0.00037,3]
[314154931,1708029032950,-177.34,0.00037082,2]
[314154932,1708029032961,-500.0,0.00037082,2]
[314154933,1708029032972,-166.35,0.00037103,2]
[314154934,1708029032983,-187.81492455,0.00037149,2]
[314154935,1708029032993,-170.32893908,0.00037156,2]
[314154936,1708029033002,-5788.41519117,0.00037159,2]
[314154937,1708029033015,-14612.42180161,0.00037159,2]
[314154938,1708029033054,-3679.80063238,0.00037159,2]
[314154939,1708029033066,-12900.0,0.00037159,2]
[314154942,1708029038072,-9488.89973459,0.00037159,2]
[314154943,1708029039036,-406.46916604,0.00037159,2]
[314154944,1708029039150,-3357.028675,0.00037159,2]
[314154945,1708029039497,-52369.49845828,0.00037159,2]
[314154946,1708029039510,-6543.14688264,0.00037159,2]
[314154947,1708029039571,-1631.5164132,0.00037159,2]
[314154948,1708029039585,-636.9005323,0.00037159,2]
[314154949,1708029039597,-3691.64847901,0.00037159,2]
[314154950,1708029039610,-692.79472096,0.00037159,2]
[314154951,1708029039622,-326.45,0.00037159,2]
[314154952,1708029039642,-481.70408771,0.00037159,2]
[314154953,1708029039654,-384.24477354,0.00037159,2]
[314154954,1708029039665,-232221.24749575,0.00037159,2]
[314154955,1708029039677,-164709.25047452,0.00037159,2]
[314154956,1708029039689,-1720.63230353,0.00037159,2]
[314155028,1708029041429,-2883.51546083,0.00037159,2]
[314155029,1708029041844,-533.49381657,0.00037159,2]
[314155037,1708029044991,-498.19792438,0.00037159,2]
[314155044,1708029045168,-2575.55,0.00037159,2]
[314155045,1708029045230,-310.45014,0.00037159,2]
[314155046,1708029045343,-420.96838032,0.00037159,2]
[314155047,1708029045394,-0.00351886,0.00037159,2]
[314155048,1708029045407,-20079.75093681,0.00037159,2]
[314155049,1708029045417,-1261.17,0.00037173,2]
[314155050,1708029045426,-182.37,0.00037277,2]
[314155051,1708029045436,-3615.62,0.00037336,5]
[314155052,1708029045445,-1261.17,0.00037365,2]
[314155053,1708029045455,-4845.90566509,0.00037393,5]
[314155054,1708029045465,-1436.87521689,0.00037393,4]
[314155055,1708029045474,-1404.39865994,0.00037393,4]
[314155056,1708029045487,-814.58707172,0.00037393,5]
[314155057,1708029045497,-252.31201778,0.00037393,3]
[314155058,1708029045506,-219.56617698,0.00037393,3]
[314155059,1708029045516,-204.94933082,0.00037434,12]
[314155060,1708029045525,-4223.4264,0.00037435,7]
[314155061,1708029045535,-2579.1366,0.00037435,2]
[314155062,1708029045545,-167.81005821,0.00037435,10]
[314155063,1708029045555,-9506.36991946,0.00037435,10]
[314155064,1708029045565,-150734.443497,0.00037525,10]
[314155065,1708029045575,-357688.31885046,0.00037534,3]
[314155066,1708029045587,-1548.94340172,0.00037534,3]
[314155067,1708029045600,-1927.65669168,0.00037534,3]
[314155068,1708029045611,-186999.59839786,0.00037534,3]
[314155069,1708029045621,-184544.2665344,0.00037535,2]
[314155072,1708029046118,-198.51483792,0.00037158,4]
[314155073,1708029046132,-359.34517172,0.00037535,2]
[314155074,1708029046347,-204.94933082,0.00037435,12]
[314155075,1708029046358,-3644.11666918,0.00037535,2]
[314155076,1708029046375,-2584.4,0.00037535,2]
[314155077,1708029046409,-297673.76507303,0.00037535,2]
[314155080,1708029327338,-1250.0,0.00025,3]
[314155081,1708029327362,-1300.0,0.00027,3]
[314155082,1708029327385,-1350.0,0.00029,3]
[314155083,1708029813807,205.0,0.00029274,2]
[314155084,1708029823037,274.0977,0.00030173,120]
[314155085,1708030069553,479.40838487,0.00029,2]
[314155086,1708030173897,205.0,0.00029981,2]
[314155097,1708030232235,-214.68340081,0.00030999,4]
[314155099,1708030232244,-1400.0,0.00031,3]
[314155100,1708030232255,-205.0,0.00031747,5]
[314155101,1708030232264,-784.02,0.00032345,2]
[314155102,1708030232274,-400.52500974,0.00032897,2]
[314155103,1708030232284,-155.0,0.00032997,4]
[314155104,1708030232293,-499.99,0.00032997,2]
[314155105,1708030232302,-1450.0,0.00033,3]
[314155106,1708030232312,-400.52500969,0.00033155,2]
[314155107,1708030232321,-151.0,0.00033321,2]
[314155108,1708030232330,-400.52500969,0.00033413,2]
[314155109,1708030232340,-205.0,0.00033513,8]
[314155110,1708030232349,-400.52500969,0.00033671,2]
[314155111,1708030232359,-400.52500969,0.00033929,2]
[314155112,1708030232368,-152.0,0.00033999,3]
[314155113,1708030232377,-151.0,0.00034005,2]
[314155114,1708030232386,-512.76,0.00034006,2]
[314155115,1708030232396,-250.0,0.00034019,111]
[314155116,1708030232405,-1000.0,0.00034022,2]
[314155117,1708030232418,-158.18,0.00034023,120]
[314155118,1708030232428,-1091.84,0.00034081,2]
[314155119,1708030232440,-859.3,0.00034094,2]
[314155120,1708030232450,-31003.25,0.00034107,2]
[314155121,1708030232459,-680.42030538,0.00034136,4]
[314155122,1708030232469,-150.0,0.00034178,3]
[314155123,1708030232479,-23900.0,0.0003418,2]
[314155124,1708030232488,-400.52500969,0.00034187,2]
[314155125,1708030232497,-1042.92454175,0.0003423,2]
[314155126,1708030232509,-370.87799,0.00034247,15]
[314155127,1708030232520,-250.0,0.00034311,2]
[314155128,1708030232529,-400.52500969,0.00034445,2]
[314155129,1708030232539,-2073.25,0.00034521,2]
[314155130,1708030232549,-150.0,0.00034548,10]
[314155131,1708030232559,-784.02,0.00034609,2]
[314155132,1708030232569,-7372.84406954,0.00034689,10]
[314155133,1708030232579,-3738.10039324,0.00034689,10]
[314155134,1708030232589,-833.04098408,0.00034689,10]
[314155135,1708030232598,-3558.26,0.00034689,5]
[314155136,1708030232817,-3671.19,0.00034689,5]
[314155137,1708030232827,-151.0,0.0003469,2]
[314155138,1708030232837,-400.52500969,0.00034703,2]
[314155139,1708030232846,-295.34,0.00034736,2]
[314155140,1708030232855,-2000.0,0.00034736,2]
[314155141,1708030232864,-9994.49,0.00034736,2]
[314155142,1708030232874,-14506.25,0.00034736,2]
[314155143,1708030232883,-11499.23,0.00034736,2]
[314155144,1708030232892,-181.58,0.00034769,2]
[314155145,1708030232901,-400.52500969,0.00034961,2]
[314155146,1708030232910,-175.49,0.00034996,2]
[314155147,1708030232919,-1500.0,0.00035,3]
[314155148,1708030232929,-175.49,0.00035092,2]
[314155149,1708030232939,-175.49,0.00035188,2]
[314155150,1708030232948,-400.52500969,0.00035219,2]
[314155151,1708030232958,-205.0,0.00035279,12]
[314155152,1708030232967,-175.49,0.00035284,2]
[314155153,1708030232976,-11569.277428,0.00035342,7]
[314155154,1708030232985,-151.0,0.00035375,2]
[314155155,1708030232994,-175.49,0.0003538,2]
[314155156,1708030233004,-175.49,0.00035476,2]
[314155157,1708030233013,-400.52500969,0.00035478,2]
[314155158,1708030233022,-816.73,0.00035517,2]
[314155159,1708030233031,-163.12,0.00035517,2]
[314155160,1708030233040,-175.49,0.00035572,2]
[314155161,1708030233049,-333.96330665,0.00035628,4]
[314155162,1708030233058,-175.49,0.00035668,2]
[314155163,1708030233067,-512.76,0.00035707,2]
[314155164,1708030233077,-168.98,0.00035708,2]
[314155165,1708030233085,-1091.84,0.00035725,2]
[314155166,1708030233094,-400.52500969,0.00035736,2]
[314155167,1708030233103,-175.49,0.00035764,2]
[314155168,1708030233112,-167.06,0.00035778,2]
[314155169,1708030233121,-2073.25,0.00035798,2]
[314155170,1708030233130,-175.49,0.0003586,2]
[314155171,1708030233139,-2931.85921571,0.00035938,2]
[314155172,1708030233149,-175.49,0.00035956,2]
[314155173,1708030233158,-400.52500969,0.00035994,2]
[314155174,1708030233167,-152.91,0.00036038,2]
[314155175,1708030233176,-175.49,0.00036052,2]
[314155176,1708030233185,-167.74,0.00036059,2]
[314155177,1708030233195,-151.0,0.0003606,7]
[314155178,1708030233204,-23884.5901533,0.0003613,2]
[314155179,1708030233213,-175.49,0.00036148,2]
[314155180,1708030233223,-325.0,0.0003623,2]
[314155181,1708030233232,-1000.0,0.0003623,5]
[314155182,1708030233242,-1000.0,0.0003623,5]
[314155183,1708030233251,-1000.0,0.0003623,5]
[314155184,1708030233262,-1000.0,0.0003623,5]
[314155185,1708030233271,-1000.0,0.0003623,5]
[314155186,1708030233280,-1000.0,0.0003623,5]
[314155187,1708030233289,-1000.0,0.0003623,5]
[314155188,1708030233298,-1000.0,0.0003623,5]
[314155189,1708030233307,-1000.0,0.0003623,5]
[314155190,1708030233316,-1000.0,0.0003623,5]
[314155191,1708030233326,-1000.0,0.0003623,5]
[314155192,1708030233335,-1000.0,0.0003623,5]
[314155193,1708030233344,-1000.0,0.0003623,5]
[314155194,1708030233353,-1000.0,0.0003623,5]
[314155195,1708030233362,-1000.0,0.0003623,5]
[314155196,1708030233371,-1000.0,0.0003623,5]
[314155197,1708030233380,-1000.0,0.0003623,5]
[314155198,1708030233390,-1000.0,0.0003623,5]
[314155199,1708030233399,-1000.0,0.0003623,5]
[314155200,1708030233408,-1000.0,0.0003623,5]
[314155201,1708030233417,-1000.0,0.0003623,5]
[314155202,1708030233429,-878.05605253,0.0003623,5]
[314155203,1708030233676,-121.94394747,0.0003623,5]
[314155204,1708030233685,-1000.0,0.0003623,5]
[314155205,1708030233694,-1000.0,0.0003623,5]
[314155206,1708030233704,-1000.0,0.0003623,5]
[314155207,1708030233713,-1000.0,0.0003623,5]
[314155208,1708030233722,-1000.0,0.0003623,5]
[314155209,1708030233732,-1000.0,0.0003623,5]
[314155210,1708030233742,-1000.0,0.0003623,5]
[314155211,1708030233751,-1000.0,0.0003623,5]
[314155212,1708030233760,-1000.0,0.0003623,5]
[314155213,1708030233770,-1000.0,0.0003623,5]
[314155214,1708030233781,-1000.0,0.0003623,5]
[314155215,1708030233791,-1000.0,0.0003623,5]
[314155216,1708030233800,-1000.0,0.0003623,5]
[314155217,1708030233810,-1000.0,0.0003623,5]
[314155218,1708030233819,-1000.0,0.0003623,5]
[314155219,1708030233829,-1000.0,0.0003623,5]
[314155220,1708030233838,-1000.0,0.0003623,5]
[314155221,1708030233847,-1000.0,0.0003623,5]
[314155222,1708030233857,-1000.0,0.0003623,5]
[314155223,1708030233868,-1000.0,0.0003623,5]
[314155224,1708030233878,-1000.0,0.0003623,5]
[314155225,1708030233886,-1000.0,0.0003623,5]
[314155226,1708030233896,-1000.0,0.0003623,5]
[314155227,1708030233905,-1000.0,0.0003623,5]
[314155228,1708030233914,-1000.0,0.0003623,5]
[314155229,1708030233923,-1000.0,0.0003623,5]
[314155230,1708030233932,-1000.0,0.0003623,5]
[314155231,1708030233942,-1000.0,0.0003623,5]
[314155232,1708030233951,-1000.0,0.0003623,5]
[314155233,1708030233960,-1000.0,0.0003623,5]
[314155234,1708030233969,-1000.0,0.0003623,5]
[314155235,1708030233978,-1000.0,0.0003623,5]
[314155236,1708030233986,-1000.0,0.0003623,5]
[314155237,1708030233996,-1000.0,0.0003623,5]
[314155238,1708030234006,-1000.0,0.0003623,5]
[314155239,1708030234015,-1138.0,0.0003623,5]
[314155240,1708030234024,-175.49,0.00036244,2]
[314155241,1708030234034,-400.52500969,0.00036252,2]
[314155242,1708030234043,-152.91,0.00036339,2]
[314155243,1708030234052,-175.49,0.0003634,2]
[314155244,1708030234062,-163.12,0.00036405,2]
[314155245,1708030234071,-175.49,0.00036436,2]
[314155246,1708030234080,-400.52500969,0.0003651,2]
[314155247,1708030234090,-175.49,0.00036532,2]
[314155248,1708030234099,-175.49,0.00036628,2]
[314155249,1708030234108,-152.91,0.00036639,2]
[314155250,1708030234117,-567.021624,0.00036648,18]
[314155251,1708030234126,-175.49,0.00036724,2]
[314155252,1708030234135,-151.0,0.00036745,7]
[314155253,1708030234144,-567.021624,0.00036748,19]
[314155254,1708030234153,-400.52500969,0.00036768,2]
[314155255,1708030234162,-50000.0,0.000368,3]
[314155256,1708030234171,-175.49,0.0003682,2]
[314155257,1708030234180,-567.021624,0.00036848,18]
[314155258,1708030234190,-784.02,0.00036873,2]
[314155259,1708030234199,-451.4658,0.000369,2]
[314155260,1708030234208,-250.0,0.000369,2]
[314155261,1708030234217,-150.0,0.000369,2]
[314155262,1708030234226,-150.0,0.000369,2]
[314155263,1708030234235,-177.34,0.000369,2]
[314155264,1708030234244,-500.0,0.000369,2]
[314155265,1708030234254,-258.69,0.000369,30]
[314155266,1708030234263,-3633.249209,0.000369,8]
[314155267,1708030234273,-2931.8592157,0.00036934,2]
[314155268,1708030234282,-152.91,0.00036939,2]
[314155269,1708030234291,-567.021624,0.00036948,19]
[314155270,1708030234301,-30846.0520112,0.0003699,10]
[314155271,1708030234310,-100000.0,0.00037,17]
[314155272,1708030234320,-1550.0,0.00037,3]
[314155273,1708030234329,-200.0,0.00037,2]
[314155274,1708030234338,-1267.0,0.00037,2]
[314155275,1708030234348,-1500.0,0.00037,2]
[314155276,1708030234357,-151.0,0.00037013,120]
[314155277,1708030234368,-400.52500969,0.00037026,2]
[314155278,1708030234377,-258.69,0.00037037,30]
[314155279,1708030234387,-3855.7565014,0.00037038,10]
[314155280,1708030234396,-205.0,0.00037045,15]
[314155281,1708030234406,-567.021624,0.00037048,24]
[314155282,1708030234415,-3855.7565014,0.0003705,10]
[314155283,1708030234426,-300.0,0.00037059,2]
[314155284,1708030234441,-3000.0,0.0003706,2]
[314155285,1708030234451,-2073.25,0.00037075,2]
[314155286,1708030234461,-567.021624,0.00037098,25]
[314155287,1708030234471,-26990.2955098,0.00037108,10]
[314155288,1708030234482,-167.05,0.00037112,2]
[314155289,1708030234492,-23884.5901533,0.00037118,2]
[314155290,1708030234503,-567.021624,0.00037148,24]
[314155291,1708030234514,-250.0,0.00037174,2]
[314155292,1708030234525,-258.69,0.00037174,30]
[314155293,1708030234536,-3855.7565014,0.00037188,10]
[314155294,1708030234546,-567.021624,0.00037198,25]
[314155295,1708030234556,-152.91,0.0003724,2]
[314155296,1708030234566,-567.021624,0.00037248,24]
[314155297,1708030234575,-400.52500969,0.00037284,2]
[314155298,1708030234586,-163.12,0.00037293,2]
[314155299,1708030234595,-567.021624,0.00037298,25]
[314155300,1708030234605,-1000.0,0.000373,2]
[314155301,1708030234614,-3855.7565014,0.00037301,10]
[314155302,1708030234624,-150.0,0.0003731,2]
[314155303,1708030234633,-258.69,0.00037311,30]
[314155304,1708030234642,-3855.7565014,0.00037314,10]
[314155305,1708030234652,-3591.91711913,0.00037324,2]
[314155306,1708030234661,-7711.5130028,0.00037325,10]
[314155307,1708030234671,-518.47674795,0.0003733,2]
[314155308,1708030234680,-120.51652052,0.00037335,2]
[314155309,1708030234872,-499.95,0.00037335,2]
[314155310,1708030234885,-653.000008,0.00037335,2]
[314155311,1708030234896,-886.0,0.00037335,2]
[314155312,1708030234913,-7568.20317148,0.00037335,2]
[314155313,1708030234922,-567.021624,0.00037348,24]
[314155314,1708030234931,-151.18,0.00037368,2]
[314155315,1708030234940,-1091.84,0.00037369,2]
[314155316,1708030234950,-3855.7565014,0.00037388,10]
[314155317,1708030234959,-3855.7565014,0.00037397,10]
[314155318,1708030234969,-567.021624,0.00037398,25]
[314155319,1708030234978,-410.36929336,0.00037405,2]
[314155320,1708030234988,-512.76,0.00037407,2]
[314155321,1708030234998,-1516.1730201,0.00037407,3]
[314155322,1708030235008,-2789.36755046,0.00037407,5]
[314155323,1708030235017,-29435.24134066,0.00037414,10]
[314155324,1708030235029,-74670.18419734,0.00037414,10]
[314155325,1708030235039,-180.0,0.00037421,2]
[314155326,1708030235048,-170.32893908,0.00037422,2]
[314155327,1708030235059,-20096.09196586,0.00037424,2]
[314155328,1708030235079,-19383.02593414,0.00037424,2]
[314155329,1708030235089,-93056.2879445,0.00037424,2]
[314155330,1708030235102,-2734.84596553,0.00037424,2]
[314155331,1708030235118,-928.53687171,0.00037424,2]
[314155332,1708030235130,-3280.32921826,0.00037424,2]
[314155333,1708030235139,-763.95395894,0.00037424,2]
[314155334,1708030235151,-236.04604106,0.00037424,2]
[314155335,1708030235160,-151.0,0.0003743,7]
[314155336,1708030235169,-1315.77536887,0.00037433,2]
[314155337,1708030235179,-9791.53311018,0.00037434,6]
[314155338,1708030235189,-4406.18989958,0.00037434,4]
[314155339,1708030235198,-151.25,0.00037434,3]
[314155340,1708030235207,-151.25,0.00037434,3]
[314155341,1708030235217,-1393.61493781,0.00037434,2]
[314155342,1708030235232,-8566.99496219,0.00037434,2]
[314155343,1708030235242,-525.7,0.00037434,2]
[314155344,1708030235251,-312.2975,0.00037435,2]
[314155345,1708030235262,-440.4191,0.00037435,2]
[314155346,1708030235271,-2083.5792,0.00037435,2]
[314155347,1708030235281,-1655.8679,0.00037435,2]
[314155348,1708030235291,-250.0,0.00037448,2]
[314155349,1708030235300,-150.0,0.00037448,2]
[314155350,1708030235309,-150.0,0.00037448,2]
[314155351,1708030235319,-564.33172119,0.00037448,24]
[314155353,1708030238278,-2.68990281,0.00037448,24]
[314155354,1708030238287,-177.34,0.00037448,2]
[314155355,1708030238297,-500.0,0.00037448,2]
[314155356,1708030238306,-258.69,0.00037448,30]
[314155357,1708030238315,-150.0,0.00037489,2]
[314155358,1708030238325,-567.021624,0.00037498,25]
[314155359,1708030238334,-754.26849167,0.000375,2]
[314155360,1708030238345,-991.56839792,0.000375,2]
[314155361,1708030238390,-4131.14555819,0.000375,2]
[314155362,1708030238399,-800.0,0.00037534,2]
[314155363,1708030238409,-2000.0,0.00037535,2]
[314155364,1708030238418,-200.0,0.00037535,2]
[314155365,1708030238428,-1652.05600256,0.00037535,2]
[314155366,1708030238440,-200.0,0.00037535,2]
[314155367,1708030238597,-152.91,0.0003754,2]
[314155368,1708030238607,-400.52500969,0.00037542,2]
[314155369,1708030238617,-567.021624,0.00037548,24]
[314155370,1708030238631,-1261.17,0.00037558,2]
[314155371,1708030238641,-258.69,0.00037585,30]
[314155372,1708030238650,-210.0,0.00037596,3]
[314155373,1708030238660,-567.021624,0.00037598,25]
[314155374,1708030238670,-152.0,0.00037642,4]
[314155375,1708030238679,-567.021624,0.00037648,24]
[314155376,1708030238689,-518.47674793,0.00037656,2]
[314155377,1708030238698,-157.3764,0.0003769,2]
[314155378,1708030238707,-567.021624,0.00037698,25]
[314155379,1708030238716,-81425.30978562,0.000377,3]
[314155380,1708030238729,-277.755,0.000377,3]
[314155381,1708030238740,-31189.43584095,0.000377,3]
[314155382,1708030238765,-280117.958697,0.000377,3]